Cogmind - Beta 16 @@@ ROGUE MODE // 2025.12.13 @ 13:48:24 Player: laeb2 Result: Destroyed by X-77 Beamer with Gatling Laser Performance ------------- Evolutions (7) 3500 Regions Visited (23) 4600 Robots Destroyed (348) 1740 Value Destroyed (19625) 19625 Prototype IDs (23) 460 Alien Tech Used (0) 0 Bonus (10554) 10554 TOTAL SCORE: 40479 Bonus ------- High Alert Combat Kills 4034 Follower Combat Kills 3121 Entered Garrisons 1200 Used RIF Installer 2000 Built Enhanced Grunts 300 Friendly Fire -101 Cogmind --------- Core Integrity 0/1300 Matter 66/300 Energy 87/100 System Corruption 13% Temperature Cool (30) Movement Core (50) Location -3/Research Parts ------- > --- POWER (1) -------- (None) > --- PROPULSION (6) --- (None) > --- UTILITY (9) ------ Coolant Injector Improved Target Analyzer Advanced Target Analyzer Advanced Target Analyzer > --- WEAPON (5) ------- (None) > --- INVENTORY (5) ---- Advanced Melee Analysis Suite Relay Coupler [Duelist] (24) Advanced Remote Datajack Peak State ------------ > --- POWER ------------ Neutrino Core > --- PROPULSION ------- Improved Heavy Treads Improved Heavy Treads Improved Heavy Treads > --- UTILITY ---------- Advanced Heat Sink Coolant Injector Coolant Injector Huge Storage Unit Improved Target Analyzer Advanced Target Analyzer Advanced Target Analyzer Graphene Brace Advanced Force Field > --- WEAPON ----------- Disruptor Cannon KE Penetrator KE Penetrator Heavy Gauss Cannon Advanced Remote Datajack > --- INVENTORY -------- Light Ion Engine Advanced Heavy Treads Wheel Wheel Armored Wheel Improved Coolant Injector High-capacity Matter Pod Advanced Target Analyzer Relay Coupler [Duelist] Relay Coupler [Sentry] Relay Coupler [Sentry] Relay Coupler [Demolisher] Relay Coupler [Hunter] Relay Coupler [Heavy] Mass Driver Hardcell Cannon Heavy Gauss Cannon Heavy Gauss Cannon Hellfire Missile Launcher Advanced Remote Datajack Impact Mace Phasing Sabre [Rating: 140] Favorites ----------- Power Particle Reactor Engine Improved Deuterium Engine Power Core Neutrino Core Reactor Particle Reactor Propulsion Wheel Treads Improved Heavy Treads Wheel Wheel Utility Huge Storage Unit Device Improved Cooling System Storage Huge Storage Unit Processor Improved Target Analyzer Hackware Relay Coupler [Specialist] Protection Improved Light Armor Plating Weapon Mini Assault Cannon Energy Gun Plasma Rifle Energy Cannon Neutron Cannon Ballistic Gun Gauss Rifle Ballistic Cannon Mini Assault Cannon Launcher Rocket Launcher Special Weapon Improved Remote Datajack Impact Weapon Impact Mace Slashing Weapon Phasing Sabre Build | -11 -10 -10 -9 -8 -8 -8 -8 -8 -7 -6 -6 -6 -6 -6 -6 -5 -5 -5 -4 -4 -4 -4 -3 ------- Run | Yrd Mat Min Mat Mat Gar Mat Gar Mat Fac Fac Gar Ext Cet Arc Hub Fac Gar Fac Fac Gar Fac Gar Res Slots Evolved 14 | . . . 2 2 . . . . 2 2 . . . . . 2 . . 2 . . . 2 Power . | . . . . . . . . . . . . . . . . . . . . . . . . Propulsion 4 | . . . . . . . . . . . . . . . . . . . 2 . . . 2 Utility 7 | . . . 1 1 . . . . 1 2 . . . . . 2 . . . . . . . Weapon 3 | . . . 1 1 . . . . 1 . . . . . . . . . . . . . . Parts Attached 255 | 6 12 3 3 11 14 8 17 4 17 4 32 13 6 . 6 5 15 9 1 16 1 20 32 Power 26 | 1 2 . 1 . 2 . 3 . 1 . 5 1 1 . 1 . 1 1 . 2 . 1 3 Engine 14 | 1 2 . 1 . 2 . 2 . 1 . 2 . . . 1 . . . . . . . 2 Core 7 | . . . . . . . 1 . . . 2 1 . . . . . 1 . 1 . 1 . Reactor 5 | . . . . . . . . . . . 1 . 1 . . . 1 . . 1 . . 1 Propulsion 44 | 2 4 2 . 1 6 2 1 1 4 . 5 . 1 . . . . 2 . 3 . 3 7 Treads 17 | 2 1 . . . 3 2 . . . . 1 . . . . . . . . 2 . 2 4 Leg . | . . . . . . . . . . . . . . . . . . . . . . . . Wheel 27 | . 3 2 . 1 3 . 1 1 4 . 4 . 1 . . . . 2 . 1 . 1 3 Hover . | . . . . . . . . . . . . . . . . . . . . . . . . Flight . | . . . . . . . . . . . . . . . . . . . . . . . . Utility 89 | 1 3 1 1 4 2 2 6 . 7 1 12 4 2 . 1 2 10 4 . 6 1 9 10 Device 37 | . 1 . 1 1 . 1 3 . 3 1 7 2 . . . 2 5 . . 2 1 4 3 Storage 3 | 1 2 . . . . . . . . . . . . . . . . . . . . . . Processor 4 | . . . . . . . . . . . . . . . . . . 1 . 1 . . 2 Hackware 11 | . . . . . . . 1 . . . . 1 . . . . 2 1 . . . 4 2 Protection 34 | . . 1 . 3 2 1 2 . 4 . 5 1 2 . 1 . 3 2 . 3 . 1 3 Artifact . | . . . . . . . . . . . . . . . . . . . . . . . . Weapon 96 | 2 3 . 1 6 4 4 7 3 5 3 10 8 2 . 4 3 4 2 1 5 . 7 12 Energy Gun 22 | . 2 . 1 1 2 3 1 2 2 1 2 1 1 . . 1 1 . . . . . 1 Energy Cannon 11 | . . . . 1 . 1 . . . . . . . . 1 2 1 1 . 2 . 1 1 Ballistic Gun 33 | 2 . . . 4 1 . 5 1 2 . 4 2 1 . 1 . . 1 1 2 . 1 5 Ballistic Cannon 17 | . . . . . . . . . . 2 4 3 . . . . 1 . . 1 . 4 2 Launcher 3 | . . . . . 1 . 1 . . . . . . . . . . . . . . . 1 Special Weapon 5 | . 1 . . . . . . . . . . 2 . . . . 1 . . . . . 1 Impact Weapon 1 | . . . . . . . . . . . . . . . 1 . . . . . . . . Slashing Weapon 4 | . . . . . . . . . 1 . . . . . 1 . . . . . . 1 1 Piercing Weapon . | . . . . . . . . . . . . . . . . . . . . . . . . Special Melee Weapon . | . . . . . . . . . . . . . . . . . . . . . . . . Unidentified Prototypes 21 | . . . 1 2 . 2 . 2 . 2 . . 2 . 3 1 . 2 . 1 . . 3 Corrupted Parts 1 | . . . . . . . . . . . . . . . . . . . . 1 . . . System Corruption 1 | . . . . . . . . . . . . . . . . . . . . 1 . . . Parts Lost 139 | . 2 1 1 5 5 1 12 1 7 . 16 11 2 1 2 . 6 1 1 16 . 14 34 Power 15 | . 1 . 1 . 1 . 2 . . . 2 1 . . . . 1 . . 2 . 1 3 Propulsion 26 | . 1 . . . 1 . 3 . 1 . 3 1 . . . . . . . 3 . 3 10 Utility 50 | . . 1 . 2 2 1 5 . 3 . 5 4 1 . 1 . 4 1 . 6 . 5 9 Weapon 48 | . . . . 3 1 . 2 1 3 . 6 5 1 1 1 . 1 . 1 5 . 5 12 Highest Loss Streak 14 | . 2 1 1 2 1 1 4 1 7 . 12 4 2 1 2 . 4 1 1 3 . 5 14 To Critical Strikes 2 | . . . . . 1 . . . . . . . . . . . . . . . . . 1 Average Backups 22 | 2 14 24 24 24 24 24 23 24 23 23 23 23 23 24 23 22 22 21 20 20 23 19 19 Power 1 | . 1 3 3 3 3 3 1 1 2 2 2 2 2 2 2 2 1 1 1 . . . . Propulsion 5 | . 3 7 8 7 6 7 5 4 5 8 5 4 5 5 4 4 4 5 4 3 4 3 3 Utility 7 | . 3 7 5 5 5 6 6 9 8 6 8 7 6 6 6 7 7 6 7 8 9 9 8 Weapon 6 | 1 4 6 6 7 7 7 8 8 6 5 5 7 8 9 7 7 7 8 8 6 9 5 5 Tool/Special . | . . . . . . . . . . . . . . . . . . . . . . . . Unused Backups 67 | . 1 . 3 5 4 3 2 3 4 1 5 2 2 2 4 . 5 . . . . 4 17 Power 9 | . . . 1 1 1 . . . 1 . 1 . . . 2 . 1 . . . . . 1 Propulsion 9 | . . . . . . . . 2 2 . 1 . . . 1 . . . . . . 1 2 Utility 29 | . 1 . 2 . 1 1 1 . 1 . 2 1 2 . . . 4 . . . . 3 10 Weapon 18 | . . . . 4 2 2 1 1 . 1 1 1 . 2 1 . . . . . . . 2 Tool/Special 2 | . . . . . . . . . . . . . . . . . . . . . . . 2 Average Slot Usage (%) 93 | . 97 100 99 99 99 99 95 99 98 99 96 95 93 87 92 92 93 94 94 82 84 83 80 Engine 4 | . 13 14 10 9 9 9 7 . 2 6 4 3 . . 4 5 . . . . . . . Core 1 | . . . . . . . 1 9 4 . . 2 . . . . . . . 1 5 4 1 Reactor 1 | . . . . . . . . . . . . . 5 6 1 . 4 4 5 3 . . 2 Treads 2 | . 13 . . . . 3 . . . . . . . . . . . . . 7 10 7 12 Wheel 10 | . 14 28 22 18 17 15 14 17 14 13 12 12 7 6 6 5 5 7 15 5 . 2 1 Device 20 | . 12 5 10 9 9 9 20 27 22 25 25 23 26 26 26 34 29 19 15 14 21 23 21 Storage 6 | . 14 14 11 9 9 9 9 9 7 6 6 6 6 6 6 5 5 5 5 5 5 5 3 Processor 1 | . . . . . . . . . . . . . . . . . . 1 5 5 5 5 6 Hackware 2 | . . . . . . . . . . . . . . . . . 2 6 10 5 5 7 6 Protection 9 | . . 8 11 17 18 17 5 . 7 13 12 13 12 13 12 11 13 15 10 9 10 2 1 Energy Gun 7 | . 11 28 33 13 7 9 13 8 14 20 5 12 6 1 . . 1 . . . . . . Energy Cannon 3 | . . . . 3 . . . . . . . . . . 2 10 18 21 13 7 5 1 . Ballistic Gun 12 | . 15 . . 19 26 26 22 27 23 6 12 4 14 20 19 14 6 4 6 7 5 1 8 Ballistic Cannon 4 | . . . . . . . . . . 2 11 13 12 6 3 . . . . 5 10 15 7 Peak Build Rating 140 | 6 9 9 14 34 35 38 42 45 56 64 72 68 85 85 89 105 110 111 102 125 123 123 140 Average Rating 70 | 4 8 8 12 24 33 34 36 41 51 61 61 62 79 79 86 100 107 103 101 111 122 107 123 On Entrance 62 | . 6 9 9 14 34 35 32 42 42 53 64 64 65 85 79 88 103 110 100 100 122 123 118 Avg Prop Armor Cover (%) 14 | . 14 . . . . . . . . . . . . . . . . . . 8 . 15 19 Naked Turns . | . . . . . . . . . . . . . . . . . . . . . . . . Heaviest Build 173 | 12 90 92 98 112 113 111 110 104 120 128 136 136 137 137 139 153 173 171 155 163 144 152 163 Greatest Support 225 | 40 40 32 20 20 20 20 26 42 24 24 24 24 28 28 28 28 28 28 32 155 155 155 225 Greatest Overweight (x) 16 | . 5 4 4 5 5 5 10 5 9 5 8 10 5 4 4 5 6 16 4 13 . 13 3 Average Overweight (x) 4 | . 1 3 4 4 5 5 5 3 4 5 4 5 4 4 4 4 5 6 4 2 . 2 . Largest Inventory Capacity 25 | 8 25 25 25 25 25 25 25 25 25 25 25 25 25 25 25 25 25 25 25 25 25 25 25 Average Capacity 24 | 7 22 25 25 25 25 25 25 25 25 25 25 25 25 25 25 25 25 25 25 25 25 25 21 Most Carried 25 | 5 25 25 25 25 25 25 25 25 25 25 25 25 25 25 25 25 25 25 24 25 25 25 25 Average Carried 23 | 2 14 24 24 24 24 24 23 24 23 23 23 24 24 24 24 24 24 24 23 22 25 23 21 Final Capacity 25 | 8 25 25 25 25 25 25 25 25 25 25 25 25 25 25 25 25 25 25 25 25 25 25 5 Final Carried 25 | 3 25 25 25 25 25 25 25 25 23 25 25 25 25 25 25 25 25 25 23 25 25 25 3 Class Distribution -------------------- 53% | Scavenger-Tank 20% | Tank 10% | Botlord-Tank 8% | Mutant 4% | Bothacker-Tank Dominant Class ---------------- Mutant | -10/Materials Mutant | -10/Mines Tank | -9/Materials Tank | -8/Materials Tank | -8/Garrison Tank | -8/Materials Tank | -8/Garrison Scavenger-Tank | -8/Materials Scavenger-Tank | -7/Factory Scavenger-Tank | -6/Factory Scavenger-Tank | -6/Garrison Scavenger-Tank | -6/Extension Scavenger-Tank | -6/Cetus Scavenger-Tank | -6/Archives Scavenger-Tank | -6/Hub_04(d) Scavenger-Tank | -5/Factory Scavenger-Tank | -5/Garrison Scavenger-Tank | -5/Factory Scavenger-Tank | -4/Factory Scavenger-Tank | -4/Garrison Bothacker-Tank | -4/Factory Botlord-Tank | -4/Garrison Botlord-Tank | -3/Research Resources | -11 -10 -10 -9 -8 -8 -8 -8 -8 -7 -6 -6 -6 -6 -6 -6 -5 -5 -5 -4 -4 -4 -4 -3 ----------- Run | Yrd Mat Min Mat Mat Gar Mat Gar Mat Fac Fac Gar Ext Cet Arc Hub Fac Gar Fac Fac Gar Fac Gar Res Matter Collected 12864 | 270 579 40 40 262 966 460 952 359 841 . 1785 807 141 133 178 94 789 234 51 1201 . 1322 1360 Remotely 1111 | . . . . . . . . . . . 778 333 . . . . . . . . . . . Salvage Created 17677 | 77 964 97 80 811 1519 635 1336 427 1339 . 1524 1184 26 68 310 125 1590 350 180 1981 . 1501 1553 Parts 793 | 3 54 . 9 39 70 33 80 24 58 . 56 30 1 4 12 6 62 28 6 63 . 53 102 Haulers Intercepted 7 | . 2 . . 1 . 1 . 1 . . . 1 . . 1 . . . . . . . . Recyclers Shooed 5 | . 3 . . . . . . . 1 . . . . . . . . . . . . . 1 Parts Field Recycled . | . . . . . . . . . . . . . . . . . . . . . . . . Retrieved Matter . | . . . . . . . . . . . . . . . . . . . . . . . . Parts Self-Destructed . | . . . . . . . . . . . . . . . . . . . . . . . . Prevented . | . . . . . . . . . . . . . . . . . . . . . . . . Parts Restored . | . . . . . . . . . . . . . . . . . . . . . . . . Kills | -11 -10 -10 -9 -8 -8 -8 -8 -8 -7 -6 -6 -6 -6 -6 -6 -5 -5 -5 -4 -4 -4 -4 -3 ------- Run | Yrd Mat Min Mat Mat Gar Mat Gar Mat Fac Fac Gar Ext Cet Arc Hub Fac Gar Fac Fac Gar Fac Gar Res Combat Hostiles Destroyed 278 | . 14 6 1 6 29 9 33 5 18 . 33 21 . 1 1 1 23 6 2 28 . 15 26 Guns 160 | . 13 6 1 5 21 9 22 5 17 . 12 14 . 1 1 . 6 . . 10 . 2 15 Cannons 85 | . . . . 1 . . . . . . 18 6 . . . 1 16 6 2 18 . 11 6 AOE 28 | . . . . . 8 . 11 . . . 3 . . . . . 1 . . . . . 5 Classes Destroyed 21 | 1 7 1 1 3 2 . 1 . 2 . 1 . . . . . 1 . . . . . 1 Worker 12 | . 3 . . 2 . . . . 3 . . . . . . . . . . . . . 4 Builder 10 | . . . . 2 . . . 1 . . . . . . 1 . . 1 . . . . 5 Tunneler 2 | . 1 . . 1 . . . . . . . . . . . . . . . . . . . Hauler 7 | . 2 . . 1 . 1 . 1 . . . 1 . . 1 . . . . . . . . Recycler 14 | 1 4 . . 3 . 1 . . 4 . . 1 . . . . . . . . . . . Mechanic 7 | . . . . 1 . . . 1 . . . 1 . . . . . . 1 2 . . 1 Operator 2 | . 1 . 1 . . . . . . . . . . . . . . . . . . . . Watcher 14 | . 3 . . 2 . . 3 2 2 . . . 1 . . . . 1 . . . . . Swarmer 56 | . 6 . . . 9 . 11 . . . 11 5 . . . . 3 . . 4 . 6 1 Cutter 4 | . . . . . . . . . . . . . . . . . . . . . . . 4 Grunt 85 | . 8 . . 3 11 2 15 2 8 . 8 6 . . 1 1 5 2 . 6 . 1 6 Brawler 6 | . . . . . 1 . . . . . . . . . . . 1 . . 4 . . . Duelist 8 | . . . . . 2 . 2 . 3 . . . . . . . 1 . . . . . . Sentry 46 | . . . 1 2 4 7 3 2 1 . 5 8 . 1 . . 5 . . 5 . 1 1 Specialist 1 | . . . . . . . . . 1 . . . . . . . . . . . . . . Hunter 30 | . . . . 1 2 . 2 1 1 . 7 . . . . . 4 1 2 4 . 4 1 Programmer 32 | . . . . . . . 2 . 3 . 1 . . . . . 2 4 . 4 . 3 13 Heavy 1 | . . . . . . . . . 1 . . . . . . . . . . . . . . Behemoth 3 | . . . . . . . . . . . 1 1 . . . . . . . 1 . . . Enhanced Grunt 2 | . . . . . . . . . . . . . . . 1 1 . . . . . . . Striker 2 | . . . . . . . . . . . . . . . . . 2 . . . . . . Assembled 6 | . . 6 . . . . . . . . . . . . . . . . . . . . . Thug 2 | . . . . . . . . . . . . 1 . . 1 . . . . . . . . Savage 1 | . . . . . . . . . . . . 1 . . . . . . . . . . . Guerrilla 1 | . . . . . . . . . . . . . . . . . 1 . . . . . . Best Kill Streak 12 | 1 6 4 1 10 6 4 6 4 6 . 12 6 1 1 1 1 4 3 2 5 . 4 10 Combat Bots Only 12 | . 5 4 1 2 6 4 6 2 4 . 12 5 . 1 1 1 4 2 2 5 . 4 5 Max Kills in Single Turn 6 | 1 2 1 1 5 2 1 4 2 2 . 3 1 1 1 1 1 2 2 1 1 . 1 6 Gunslinging 1 | . . . . . . . . . . . . . . . . . . . . . . . 1 Exploded 4 | . . . . . 2 . 4 . . . 3 . . . . . 1 . . . . . 3 Melee . | . . . . . . . . . . . . . . . . . . . . . . . . Uniques/NPCs Destroyed . | . . . . . . . . . . . . . . . . . . . . . . . . Combat | -11 -10 -10 -9 -8 -8 -8 -8 -8 -7 -6 -6 -6 -6 -6 -6 -5 -5 -5 -4 -4 -4 -4 -3 -------- Run | Yrd Mat Min Mat Mat Gar Mat Gar Mat Fac Fac Gar Ext Cet Arc Hub Fac Gar Fac Fac Gar Fac Gar Res Hostile Shots Fired 2268 | . 86 15 4 27 106 29 109 29 160 . 316 177 6 4 8 . 89 30 32 281 6 179 575 Missed 654 | . 29 3 2 6 26 8 25 13 54 . 80 65 2 . 1 . 20 9 10 68 3 67 163 Hits 1614 | . 57 12 2 21 80 21 84 16 106 . 236 112 4 4 7 . 69 21 22 213 3 112 412 Melee 65 | . . 5 . . 2 . 2 . 16 . 4 . . . . . 18 . . 5 . . 13 Projectile 1549 | . 57 7 2 21 78 21 82 16 90 . 232 112 4 4 7 . 51 21 22 208 3 112 399 AOE 4 | . . . . . . . . . 2 . . . . . . . . 1 . . . . 1 Critical Strikes 65 | . . . . 1 6 2 2 1 6 . 5 2 1 . 1 . 5 1 1 8 . 2 21 Actively Blocked 48 | . . . . 1 . . . . 3 . 4 2 1 . 1 . 5 1 1 8 . 2 19 Part Disruptions 3 | . . 1 . . . . . . . . . . . . . . 1 . . . . . 1 Damage Taken 27471 | . 583 217 34 469 1136 319 1130 179 1951 . 3213 1419 131 94 270 . 1945 723 487 3811 65 1813 7482 Core 3636 | . 134 62 4 96 134 30 117 41 277 . 577 163 27 . 22 . 311 52 . 110 . 171 1308 Absorbed by Shields 319 | . . . . . . . . . . . . 31 . . . . . . . 40 . 72 176 Reduced by Siege Mode 369 | . . . . . . . . . . . . . . . . . . . . 157 . 41 171 Redirected to Shielding 53 | . . . . 53 . . . . . . . . . . . . . . . . . . . Ignored by Resistances 223 | . . . . . . . 138 32 53 . . . . . . . . . . . . . . Core Remaining (%) 56 | 100 . 21 99 . . . . 24 60 . . . . . 7 . . 63 . . . 75 . Volleys Fired 1058 | 11 102 16 4 33 168 20 106 22 54 2 90 79 5 2 9 3 74 19 9 86 3 43 98 Largest 5 | 2 2 2 3 4 4 4 4 4 5 1 5 5 5 3 4 4 5 5 4 5 1 5 5 Hottest 424 | 40 80 80 120 168 148 172 208 149 272 40 284 304 207 81 181 248 418 424 316 349 40 244 226 Shots Fired 2965 | 16 201 29 12 124 338 78 291 85 241 2 271 203 21 6 28 10 270 63 23 274 3 118 258 Gun 2068 | 16 198 29 12 112 329 77 284 85 241 . 145 109 14 6 23 7 91 13 5 84 . 10 178 Cannon 803 | . . . . 12 . 1 . . . 2 124 64 7 . 5 3 175 49 15 190 3 96 57 Launcher 20 | . . . . . 9 . 7 . . . 2 . . . . . . . . . . . 2 Special 74 | . 3 . . . . . . . . . . 30 . . . . 4 1 3 . . 12 21 Kinetic 1765 | 16 143 . . 67 182 55 144 66 140 2 202 80 17 6 25 7 90 13 5 177 3 98 227 Thermal 923 | . 3 . . 24 147 23 140 19 101 . 67 93 4 . 3 3 171 49 15 61 . . . Explosive 20 | . . . . . 9 . 7 . . . 2 . . . . . . . . . . . 2 Electromagnetic 186 | . 55 29 12 33 . . . . . . . . . . . . 5 . . 36 . 8 8 Robot Hit Streak 34 | 3 9 6 11 13 34 8 11 9 11 . 11 19 9 3 6 12 11 9 5 30 . 11 25 Robot Miss Streak 10 | 2 7 2 . 4 5 2 6 3 3 . 10 8 3 2 1 1 8 2 3 3 . 3 4 Penetration Max 1 | . . . . . . . . 1 1 . 1 1 . . 1 . 1 . . 1 . 1 1 Secondary Targets 24 | . 4 1 . 1 4 . 4 1 4 . . 2 . . . . . . . . . . 3 Max Gunslinging Chain 2 | . 1 1 . 1 1 . 1 1 1 . . 1 . . . . . . . . . . 2 Shots Hit Robots 1762 | 9 128 17 9 58 158 49 138 45 142 . 158 148 13 4 23 15 136 31 11 188 . 121 161 Core Hits 747 | 3 44 8 3 28 68 16 69 18 49 . 88 83 3 3 9 4 52 11 4 73 . 33 78 Critical Kills 14 | . . . . . 1 . . . 1 . . 2 . . 1 . 2 . . 3 . 1 3 Critical Parts Destroyed 25 | . . . . . 1 . . 1 1 . 2 6 . . . . 3 . . 3 . 2 6 Critical Strikes 103 | . . . . . 6 1 6 1 5 . 9 12 . . 3 2 6 . . 21 . 13 18 Burn 13 | . . . . . 4 1 6 . 2 . . . . . . . . . . . . . . Meltdown 1 | . . . . . . . . . . . . . . . . . . . . 1 . . . Destroy 42 | . . . . . 2 . . 1 3 . 2 9 . . 2 . 6 . . 7 . 1 9 Blast 33 | . . . . . . . . . . . 5 3 . . . . . . . 9 . 8 8 Corrupt 3 | . . . . . . . . . . . . . . . . . . . . 1 . 1 1 Smash 2 | . . . . . . . . . . . . . . . . . . . . . . 2 . Sever 9 | . . . . . . . . . . . 2 . . . 1 2 . . . 3 . 1 . Melee Attacks 136 | . . . . . . . . . 3 1 23 2 . . 6 8 16 . . 13 . 63 1 Impact 15 | . . . . . . . . . . . . . . . . . . . . . . 15 . Slashing 121 | . . . . . . . . . 3 1 23 2 . . 6 8 16 . . 13 . 48 1 Piercing . | . . . . . . . . . . . . . . . . . . . . . . . . Sneak Attacks 15 | . . . . . . . . . 1 . . . . . 3 8 . . . 3 . . . Combat Hostiles 1 | . . . . . . . . . . . . . . . . . . . . 1 . . . Follow-up Attacks . | . . . . . . . . . . . . . . . . . . . . . . . . Damage Inflicted 50043 | 82 1553 207 113 1463 3529 899 3597 892 3311 . 4404 2942 277 69 940 859 5927 1159 328 6159 . 6023 5310 Guns 22840 | 82 1299 193 104 766 2750 899 2608 892 3161 . 1609 2172 145 69 469 105 961 154 15 1242 . 136 3009 Cannons 13614 | . . . . 142 . . . . . . 1463 741 132 . 110 82 3242 1005 313 3930 . 1483 971 Explosions 4576 | . 249 . . 512 779 . 989 . . . 251 . . . . . 448 . . 25 . . 1323 Melee 8829 | . . . . . . . . . 73 . 1081 . . . 361 672 1276 . . 962 . 4404 . Ramming 184 | . 5 14 9 43 . . . . 77 . . 29 . . . . . . . . . . 7 Kinetic 20650 | 82 835 . . 382 1500 532 1273 740 1615 . 2379 894 231 69 469 105 909 154 15 3081 . 1548 3837 Thermal 14212 | . 249 . . 355 1250 367 1335 152 1546 . 693 2019 46 . 110 82 3375 1005 313 1315 . . . Explosive 3991 | . . . . 450 779 . 989 . . . 251 . . . . . 199 . . . . . 1323 Electromagnetic 2177 | . 464 193 104 233 . . . . . . . . . . . . 168 . . 801 . 71 143 Impact 410 | . . . . . . . . . . . . . . . . . . . . . . 410 . Slashing 8419 | . . . . . . . . . 73 . 1081 . . . 361 672 1276 . . 962 . 3994 . Piercing . | . . . . . . . . . . . . . . . . . . . . . . . . Highest Corruption 20 | . . 2 . . . . . . 5 1 1 5 5 5 5 . 11 14 . 19 19 20 13 Average Corruption 7 | . . 1 . . . . . . 4 1 1 3 5 5 5 . 10 12 . 12 19 19 4 Corruption Purged . | . . . . . . . . . . . . . . . . . . . . . . . . Corruption Blocked . | . . . . . . . . . . . . . . . . . . . . . . . . Effects 350 | . . 4 . . . . . . 13 1 18 25 11 8 14 . 78 42 . 42 4 56 34 Message Errors 76 | . . 1 . . . . . . 1 . 5 8 1 . 2 . 20 10 . 12 . 10 6 Matter Fused 92 | . . 1 . . . . . . 2 . 5 6 4 4 3 . 19 13 . 5 2 20 8 Heat Flow Errors 43 | . . . . . . . . . 2 1 2 1 3 1 3 . 1 6 . 9 1 5 8 Energy Discharges 39 | . . . . . . . . . 2 . 2 3 1 1 1 . 11 4 . 4 . 6 4 Parts Rejected 5 | . . . . . . . . . . . 1 1 . . . . 1 . . . . 1 1 Data Loss (minor) 45 | . . 1 . . . . . . . . 3 4 1 2 1 . 13 6 . 4 1 8 1 Data Loss (major) 9 | . . . . . . . . . 2 . . . . . 1 . 3 . . 1 . 1 1 Misfires 12 | . . . . . . . . . . . . 1 1 . 1 . 3 1 . 1 . 2 2 Alerts 8 | . . 1 . . . . . . . . . . . . 1 . 4 . . . . 1 1 Misdirections 4 | . . . . . . . . . . . . . . . . . 2 . . . . 2 . Weapon Failures 17 | . . . . . . . . . 4 . . 1 . . 1 . 1 2 . 6 . . 2 Overload Shots . | . . . . . . . . . . . . . . . . . . . . . . . . Overflow Damage 1170 | . 89 . . 93 17 . 13 . 35 . 88 . . . 17 119 161 42 18 159 . 206 113 Projectiles 305 | . . . . . . . . . . . 27 . . . 10 . 125 42 18 56 . 27 . Explosions 377 | . 89 . . 90 17 . 13 . . . 35 . . . . . 20 . . . . . 113 Melee 488 | . . . . 3 . . . . 35 . 26 . . . 7 119 16 . . 103 . 179 . Knockbacks 38 | . 1 . . 1 . . . . 2 . 6 3 . . . . . . . 10 . 10 5 Impact 7 | . 1 . . 1 . . . . 2 . . 1 . . . . . . . . . 2 . Kinetic 30 | . . . . . . . . . . . 5 2 . . . . . . . 10 . 8 5 Secondary 1 | . . . . . . . . . . . 1 . . . . . . . . . . . . Self-Inflicted Damage 686 | . 2 6 4 147 99 . 25 . 38 . . 14 . . . . 114 49 . . . . 188 Shots 11 | . . . . 2 2 . 1 . . . . . . . . . 3 1 . . . . 2 Rammed 15 | . 1 2 1 1 . . . . 2 . . 2 . . . . . . . . . . 6 Targets Rammed 15 | . 1 2 1 1 . . . . 2 . . 2 . . . . . . . . . . 6 Kicked . | . . . . . . . . . . . . . . . . . . . . . . . . Crushed . | . . . . . . . . . . . . . . . . . . . . . . . . Highest Temperature 426 | . 20 179 198 269 286 232 295 . 397 92 284 261 172 . 153 . 426 297 126 322 24 195 192 Average Temperature 95 | . 4 78 88 87 88 78 117 . 136 68 86 108 104 . 75 . 105 94 49 93 24 79 74 Received Heat Transfer 4129 | . 216 80 9 126 306 162 531 108 243 . 369 390 9 18 51 . 66 36 63 253 18 22 1053 Effects 12 | . . . . . 4 . . . 3 . 3 . . . . . . . . 2 . . . Interference 12 | . . . . . 4 . . . 3 . 3 . . . . . . . . 2 . . . Siege Activations 11 | . . . . . . . . . . . . . . . . . . . . 4 . 2 5 Total Turns 436 | . . . . . . . . . . . . . . . . . . . . 178 . 124 134 Longest Duration 94 | . . . . . . . . . . . . . . . . . . . . 69 . 94 78 Martial Activations . | . . . . . . . . . . . . . . . . . . . . . . . . Shielding Activations . | . . . . . . . . . . . . . . . . . . . . . . . . Robots Disrupted 2 | . . . . . . . . . . . . . . . . . . . . 1 . . 1 Combat Hostiles 2 | . . . . . . . . . . . . . . . . . . . . 1 . . 1 Robots Corrupted 5 | . 1 . . 1 . . . . 1 . . . . . . . . . . . . 2 . Combat Hostiles 3 | . 1 . . . . . . . . . . . . . . . . . . . . 2 . Parts Fried 6 | . . . . 1 . . . . 3 . . 1 . . . . . . . 1 . . . Impact Corruptions 8 | . . . . 1 . . . . 2 . . . . . . . . . . . . 5 . Robots Melted 4 | . . . . . 1 . . . 1 . . 1 . . . . . . . 1 . . . Combat Hostiles 2 | . . . . . . . . . 1 . . 1 . . . . . . . . . . . Parts Melted 31 | . . . . . 3 1 4 1 3 . 4 6 . . . . 3 1 . 5 . . . Heat Transferred 21175 | . 200 . . 605 2779 779 3228 350 3445 . 1406 4562 87 . . . 1531 622 374 1207 . . . Parts Sabotaged 12 | . . . . . . . . . . . 12 . . . . . . . . . . . . Parts Stolen . | . . . . . . . . . . . . . . . . . . . . . . . . Parts Stripped . | . . . . . . . . . . . . . . . . . . . . . . . . Power Chain Reactions 6 | . 1 . . 1 . . . . . . . . . . . . 3 . . 1 . . . Alert | -11 -10 -10 -9 -8 -8 -8 -8 -8 -7 -6 -6 -6 -6 -6 -6 -5 -5 -5 -4 -4 -4 -4 -3 ------- Run | Yrd Mat Min Mat Mat Gar Mat Gar Mat Fac Fac Gar Ext Cet Arc Hub Fac Gar Fac Fac Gar Fac Gar Res Maximum Alert Level 5 | . . . . . 4 2 4 3 1 . 4 3 2 1 2 1 5 4 2 4 2 3 3 Low Security (%) 21 | 100 100 100 100 100 9 . . . 59 100 17 . . 4 2 . . . . . . . . Level 1 13 | . . . . . 7 85 1 . 40 . 14 . . 95 38 100 4 . . 5 . . 39 Level 2 29 | . . . . . 20 14 25 . . . 29 70 100 . 58 . 14 . 100 63 100 67 51 Level 3 18 | . . . . . 34 . 15 100 . . 25 29 . . . . 4 91 . 20 . 32 9 Level 4 11 | . . . . . 27 . 57 . . . 13 . . . . . 30 8 . 10 . . . Level 5 4 | . . . . . . . . . . . . . . . . . 46 . . . . . . High Security . | . . . . . . . . . . . . . . . . . . . . . . . . Max Security . | . . . . . . . . . . . . . . . . . . . . . . . . Peak Influence 2148 | 5 126 43 34 172 1352 659 1568 802 332 120 1350 994 662 330 681 381 2148 1127 494 1292 678 961 970 Initial 1127 | . . 43 . . 55 659 297 764 332 116 2 708 568 192 80 310 238 1127 479 338 678 441 540 Average 639 | . 52 3 5 65 821 353 1063 765 199 46 634 664 572 271 471 310 1418 1049 477 696 661 640 471 Influence Increases 14564 | 5 525 . 49 369 1367 315 1431 196 523 20 1568 1203 152 178 791 141 2190 290 55 1154 2 700 1340 Destroy 0b10 Robot/C 6920 | . 280 . 20 140 580 180 760 100 360 . 800 740 80 80 280 60 800 160 40 600 . 300 560 Destroy 0b10 Robot/NC 490 | 5 70 . 5 60 30 10 20 25 45 . 15 20 5 . 25 . 15 10 5 25 . 50 50 Destroy Leader 846 | . 60 . 10 56 30 72 40 36 94 . 60 72 . . 54 10 40 32 . 50 . 30 100 Allied During Kill 1268 | . . . 4 8 . . 19 1 . . 58 223 65 80 359 57 351 6 . 4 . . 33 Successful Hack 151 | . . . 10 8 28 4 28 18 . 18 . 16 . . . . 7 . . 14 . . . Disable Machine 360 | . 75 . . 30 15 . 15 15 15 . 15 . . 15 30 . 30 30 . 30 . . 45 Anti-Garrison Action 2350 | . . . . . 450 . 350 . . . 500 . . . . . 600 . . 250 . 200 . Destroy Structure 1174 | . 25 . . 37 219 4 124 1 9 2 75 27 2 3 28 14 332 52 10 76 2 30 102 Partial Spotted 15 | . . . . . . . . . . . . . . . . . . . . 15 . . . Lose Combat Pursuer 990 | . 15 . . 30 15 45 75 . . . 45 105 . . 15 . 15 . . 90 . 90 450 Influence Decreases 13716 | 5 413 112 49 284 100 1209 321 1032 1016 255 222 1536 687 430 388 433 383 1459 550 346 664 369 1453 Entered New Map 7130 | . . 69 . . 30 693 161 804 400 123 2 642 449 290 150 323 103 1021 500 146 614 189 421 Time Decay 4096 | 5 403 43 49 264 . 206 . 198 546 132 . 514 198 110 198 110 . 428 40 . 30 . 622 Lost Part 1330 | . 10 . . 20 50 10 120 10 70 . 160 110 20 10 20 . 60 10 10 160 . 140 340 Lost Ally 860 | . . . . . 20 . 40 20 . . 60 270 20 20 20 . 220 . . 40 20 40 70 Purge Threat 300 | . . . . . . 300 . . . . . . . . . . . . . . . . . Squads Dispatched 40 | . 4 . . . . 4 . 2 6 1 . 4 . . 2 1 . 2 2 . . . 12 Investigation 5 | . 1 . . . . . . . 1 1 . 1 . . . 1 . . . . . . . Extermination 9 | . . . . . . . . . 2 . . . . . . . . 2 . . . . 5 Reinforcement 16 | . 3 . . . . 2 . . 3 . . 1 . . 2 . . . . . . . 5 Assault 4 | . . . . . . . . 2 . . . 2 . . . . . . . . . . . Garrison 6 | . . . . . . 2 . . . . . . . . . . . . 2 . . . 2 Intercept . | . . . . . . . . . . . . . . . . . . . . . . . . Searches Triggered . | . . . . . . . . . . . . . . . . . . . . . . . . Construction Impeded 4 | . . . . . . . . . 1 . . . . . . . . . . . . . 3 Haulers Reinforced 1 | . . . . . . . . . . . . . . . 1 . . . . . . . . Active Scanning Responses . | . . . . . . . . . . . . . . . . . . . . . . . . Cargo Convoy Interrupts . | . . . . . . . . . . . . . . . . . . . . . . . . Alert ID Control Effect 1 | . . . . . . . . . . . . . . . . . . . . . . . 1 Stealth | -11 -10 -10 -9 -8 -8 -8 -8 -8 -7 -6 -6 -6 -6 -6 -6 -5 -5 -5 -4 -4 -4 -4 -3 --------- Run | Yrd Mat Min Mat Mat Gar Mat Gar Mat Fac Fac Gar Ext Cet Arc Hub Fac Gar Fac Fac Gar Fac Gar Res Distress Signals 23 | . 3 . . 1 1 1 3 1 4 . . 1 1 . 1 . . 1 . . . . 5 Communications Jammed . | . . . . . . . . . . . . . . . . . . . . . . . . Distress Signals . | . . . . . . . . . . . . . . . . . . . . . . . . Times Spotted 508 | . 29 7 2 15 34 11 44 11 30 1 46 46 5 5 16 1 44 13 4 36 3 27 78 Peak Tracking Total 19 | . 4 5 1 5 5 3 6 3 5 1 11 7 5 2 5 1 7 3 2 6 3 11 19 Tactical Retreats 38 | . 1 2 . 2 1 3 3 . . . 2 4 . . 1 . 1 . . 4 . 4 10 Traps | -11 -10 -10 -9 -8 -8 -8 -8 -8 -7 -6 -6 -6 -6 -6 -6 -5 -5 -5 -4 -4 -4 -4 -3 ------- Run | Yrd Mat Min Mat Mat Gar Mat Gar Mat Fac Fac Gar Ext Cet Arc Hub Fac Gar Fac Fac Gar Fac Gar Res Traps Triggered 37 | . 1 . . . 9 . 4 . . . 10 1 . . . 1 5 1 1 1 . 2 1 Indirectly . | . . . . . . . . . . . . . . . . . . . . . . . . Trap Hack Attempts . | . . . . . . . . . . . . . . . . . . . . . . . . Triggered . | . . . . . . . . . . . . . . . . . . . . . . . . Disarmed 1 | . . . . . . . . . . . . 1 . . . . . . . . . . . Reprogrammed . | . . . . . . . . . . . . . . . . . . . . . . . . Reused . | . . . . . . . . . . . . . . . . . . . . . . . . Traps Extracted . | . . . . . . . . . . . . . . . . . . . . . . . . Installed . | . . . . . . . . . . . . . . . . . . . . . . . . Triggered . | . . . . . . . . . . . . . . . . . . . . . . . . Most Traps Carried 2 | . . . . . . . . . . . . . . . . . . . . . . 2 2 Machines | -11 -10 -10 -9 -8 -8 -8 -8 -8 -7 -6 -6 -6 -6 -6 -6 -5 -5 -5 -4 -4 -4 -4 -3 ---------- Run | Yrd Mat Min Mat Mat Gar Mat Gar Mat Fac Fac Gar Ext Cet Arc Hub Fac Gar Fac Fac Gar Fac Gar Res Machines Disabled 61 | . 5 . . 2 13 . 8 1 1 . 7 1 . 1 2 . 9 2 . 4 . 2 3 Max in Single Turn 4 | . 4 . . 1 3 . 1 1 1 . 2 . . 1 . . 1 1 . 1 . 1 1 Garrison Relay 20 | . . . . . 4 . 4 . . . 4 . . . . . 4 . . 2 . 2 . Phase Generator 3 | . . . . . 1 . . . . . 1 . . . . . 1 . . . . . . Machines Repaired . | . . . . . . . . . . . . . . . . . . . . . . . . Machines Dismantled . | . . . . . . . . . . . . . . . . . . . . . . . . Machines Sabotaged . | . . . . . . . . . . . . . . . . . . . . . . . . Overloaded Fab Kills . | . . . . . . . . . . . . . . . . . . . . . . . . Hacking | -11 -10 -10 -9 -8 -8 -8 -8 -8 -7 -6 -6 -6 -6 -6 -6 -5 -5 -5 -4 -4 -4 -4 -3 --------- Run | Yrd Mat Min Mat Mat Gar Mat Gar Mat Fac Fac Gar Ext Cet Arc Hub Fac Gar Fac Fac Gar Fac Gar Res Machines Accessed 41 | . 1 . 2 2 2 2 4 2 3 4 2 7 1 1 1 1 2 . 1 2 1 . . Terminals 30 | . 1 . 2 . 2 1 4 2 1 2 2 7 1 . 1 . 2 . . 2 . . . Fabricators 2 | . . . . . . . . . 2 . . . . . . . . . . . . . . Repair Stations . | . . . . . . . . . . . . . . . . . . . . . . . . Recycling Units . | . . . . . . . . . . . . . . . . . . . . . . . . Scanalyzers 2 | . . . . 1 . . . . . 1 . . . . . . . . . . . . . Garrison Access 6 | . . . . 1 . 1 . . . 1 . . . . . 1 . . 1 . 1 . . Total Hacks 112 | . 2 . 7 6 5 6 11 4 5 7 4 14 3 25 3 1 3 . 1 4 1 . . Successful 61 | . 1 . 4 4 2 4 2 3 1 2 . 7 . 25 1 1 1 . 1 1 1 . . Failed 50 | . 1 . 2 2 3 2 9 1 4 5 4 7 3 . 2 . 2 . . 3 . . . Catastrophic 13 | . . . . . . 1 1 1 2 1 1 . 2 . 2 . 1 . . 1 . . . Database Lockouts 1 | . . . 1 . . . . . . . . . . . . . . . . . . . . Manual 22 | . . . 6 . . . . 3 3 1 . 3 1 1 4 . . . . . . . . Terminals 71 | . 2 . 7 . 5 5 11 4 3 3 4 14 3 . 3 . 3 . . 4 . . . Fabricators 2 | . . . . . . . . . 2 . . . . . . . . . . . . . . Repair Stations . | . . . . . . . . . . . . . . . . . . . . . . . . Recycling Units . | . . . . . . . . . . . . . . . . . . . . . . . . Scanalyzers 8 | . . . . 5 . . . . . 3 . . . . . . . . . . . . . Garrison Access 6 | . . . . 1 . 1 . . . 1 . . . . . 1 . . 1 . 1 . . Terminal Hacks 48 | . 1 . 3 . 2 3 2 2 . 1 . 6 . 25 1 . 1 . . 1 . . . Record 26 | . . . . . . . . . . . . . . 25 1 . . . . . . . . Robot Analysis 4 | . . . 2 . . . . 2 . . . . . . . . . . . . . . . Prototype ID Bank 1 | . . . 1 . . . . . . . . . . . . . . . . . . . . Open Door 4 | . . . . . . . . . . . . 3 . . . . 1 . . . . . . Emergency Access Points 4 | . 1 . . . 1 . 1 . . . . . . . . . . . . 1 . . . Alert Level 1 | . . . . . . 1 . . . . . . . . . . . . . . . . . Unreport Threat 2 | . . . . . . 2 . . . . . . . . . . . . . . . . . Locate Traps 2 | . . . . . . . . . . 1 . 1 . . . . . . . . . . . Disarm Traps 1 | . . . . . . . . . . . . 1 . . . . . . . . . . . Hauler Manifests 1 | . . . . . . . . . . . . 1 . . . . . . . . . . . Patrol Navigation 2 | . . . . . 1 . 1 . . . . . . . . . . . . . . . . Fabricator Hacks 1 | . . . . . . . . . 1 . . . . . . . . . . . . . . Network Status 1 | . . . . . . . . . 1 . . . . . . . . . . . . . . Repair Station Hacks . | . . . . . . . . . . . . . . . . . . . . . . . . Recycling Unit Hacks . | . . . . . . . . . . . . . . . . . . . . . . . . Scanalyzer 3 | . . . . 3 . . . . . . . . . . . . . . . . . . . Retrieve Study 3 | . . . . 3 . . . . . . . . . . . . . . . . . . . Garrison Access Hacks 6 | . . . . 1 . 1 . . . 1 . . . . . 1 . . 1 . 1 . . Unlock Access 6 | . . . . 1 . 1 . . . 1 . . . . . 1 . . 1 . 1 . . Unauthorized Hacks 3 | . . . 1 . . . . 1 . . . 1 . . . . . . . . . . . Terminals 3 | . . . 1 . . . . 1 . . . 1 . . . . . . . . . . . Assimilate 1 | . . . . . . . . . . . . 1 . . . . . . . . . . . Operators 2 | . . . 1 . . . . 1 . . . . . . . . . . . . . . . Fabricators . | . . . . . . . . . . . . . . . . . . . . . . . . Repair Stations . | . . . . . . . . . . . . . . . . . . . . . . . . Recycling Units . | . . . . . . . . . . . . . . . . . . . . . . . . Scanalyzers . | . . . . . . . . . . . . . . . . . . . . . . . . Garrison Access . | . . . . . . . . . . . . . . . . . . . . . . . . Data Cores Recovered 2 | . . . 1 . . . . . . . . . . . 1 . . . . . . . . Used 1 | . . . . . . . . . . . . . . . 1 . . . . . . . . Hacking Detections 30 | . 1 . 2 1 2 1 2 2 2 3 2 7 2 . 1 . 1 . . 1 . . . Full Trace Events 6 | . . . . . . . 1 . 1 1 1 1 . . . . . . . 1 . . . Feedback Events 1 | . . . . . . . . . . 1 . . . . . . . . . . . . . Corruption 1 | . . . . . . . . . . 1 . . . . . . . . . . . . . Feedback Blocked . | . . . . . . . . . . . . . . . . . . . . . . . . Robot Schematics Acquired . | . . . . . . . . . . . . . . . . . . . . . . . . Robots Built . | . . . . . . . . . . . . . . . . . . . . . . . . Authchips . | . . . . . . . . . . . . . . . . . . . . . . . . Time . | . . . . . . . . . . . . . . . . . . . . . . . . Total Robot Build Rating . | . . . . . . . . . . . . . . . . . . . . . . . . Part Schematics Acquired . | . . . . . . . . . . . . . . . . . . . . . . . . Parts Built . | . . . . . . . . . . . . . . . . . . . . . . . . Authchips . | . . . . . . . . . . . . . . . . . . . . . . . . Time . | . . . . . . . . . . . . . . . . . . . . . . . . Total Part Build Rating . | . . . . . . . . . . . . . . . . . . . . . . . . Part Studies Acquired 3 | . . . . 3 . . . . . . . . . . . . . . . . . . . Parts Repaired . | . . . . . . . . . . . . . . . . . . . . . . . . Time . | . . . . . . . . . . . . . . . . . . . . . . . . Parts Recycled . | . . . . . . . . . . . . . . . . . . . . . . . . Recycled Matter . | . . . . . . . . . . . . . . . . . . . . . . . . Retrieved Matter . | . . . . . . . . . . . . . . . . . . . . . . . . Retrieved Components . | . . . . . . . . . . . . . . . . . . . . . . . . Parts Scanalyzed . | . . . . . . . . . . . . . . . . . . . . . . . . Part Schematics Acquired . | . . . . . . . . . . . . . . . . . . . . . . . . Parts Damaged . | . . . . . . . . . . . . . . . . . . . . . . . . Bothacking | -11 -10 -10 -9 -8 -8 -8 -8 -8 -7 -6 -6 -6 -6 -6 -6 -5 -5 -5 -4 -4 -4 -4 -3 ------------ Run | Yrd Mat Min Mat Mat Gar Mat Gar Mat Fac Fac Gar Ext Cet Arc Hub Fac Gar Fac Fac Gar Fac Gar Res Used RIF Installer 4 | . . . . . . . . . . . 1 . . . . . 1 . . 1 . 1 . Alert ID Control 1 | . . . . . . . . . . . . . . . . . . . . 1 . . . Structural Interface 1 | . . . . . . . . . . . . . . . . . 1 . . . . . . Autoassimilate 1 | . . . . . . . . . . . . . . . . . . . . . . 1 . Robots Hacked 23 | . . . . . . . . . . . . 2 . . . . 3 1 1 . . 5 11 Non-combat 5 | . . . . . . . . . . . . . . . . . . . . . . . 5 Combat 18 | . . . . . . . . . . . . 2 . . . . 3 1 1 . . 5 6 Autoassimilated 1 | . . . . . . . . . . . . . . . . . . . . . . . 1 Robot Hacks Applied 24 | . . . . . . . . . . . . 2 . . . . 3 1 1 . . 5 12 parse_system 1 | . . . . . . . . . . . . 1 . . . . . . . . . . . generate_echo 1 | . . . . . . . . . . . . . . . . . . . . . . . 1 map_walls 1 | . . . . . . . . . . . . . . . . . . . . . . . 1 drop_inventory 1 | . . . . . . . . . . . . . . . . . . . . . . . 1 locate_stockpiles 1 | . . . . . . . . . . . . . . . . . . . . . . . 1 mark_security 1 | . . . . . . . . . . . . . . . . . . . . . . . 1 find_garrison 1 | . . . . . . . . . . . . . . . . . . . . . . . 1 scatter_targeting 1 | . . . . . . . . . . . . . . . . . . . . . . . 1 spike_heat 1 | . . . . . . . . . . . . . . . . . . . . . . . 1 overload_power 1 | . . . . . . . . . . . . . . . . . . . . . . 1 . amplify_resonance 1 | . . . . . . . . . . . . . . . . . . . . . . 1 . overwrite_iff 5 | . . . . . . . . . . . . . . . . . 1 1 1 . . 1 1 streamctrl_high 1 | . . . . . . . . . . . . 1 . . . . . . . . . . . formatsys_high 7 | . . . . . . . . . . . . . . . . . 2 . . . . 2 3 Relay Couplers Released 81 | . . . . . 14 . 17 . . . 17 . . . . . 16 . . 7 . 10 . Machine Destruction 81 | . . . . . 14 . 17 . . . 17 . . . . . 16 . . 7 . 10 . Attached 10 | . . . . . . . . . . . . 1 . . . . 2 1 . . . 4 2 Fabnet Peak Effective % . | . . . . . . . . . . . . . . . . . . . . . . . . Robots Rewired 36 | . . . . . 1 . 5 . . . 4 19 . . . . 6 . . 1 . . . Allies Hacked . | . . . . . . . . . . . . . . . . . . . . . . . . Hacks Repelled . | . . . . . . . . . . . . . . . . . . . . . . . . Allies | -11 -10 -10 -9 -8 -8 -8 -8 -8 -7 -6 -6 -6 -6 -6 -6 -5 -5 -5 -4 -4 -4 -4 -3 -------- Run | Yrd Mat Min Mat Mat Gar Mat Gar Mat Fac Fac Gar Ext Cet Arc Hub Fac Gar Fac Fac Gar Fac Gar Res Total Allies 63 | . . 2 . . 1 . 5 . . . 4 24 5 . . . 9 1 1 3 . 3 5 Largest Group 13 | . . 2 2 2 1 . 3 1 . . 4 9 13 13 10 5 6 1 1 2 1 2 3 Highest-Rated Group 831 | . . 43 43 43 15 . 48 16 . . 184 395 831 831 601 398 356 41 56 124 59 94 136 Highest-Rated Ally 159 | . . 31 31 31 15 . 18 16 . . 46 159 159 152 96 96 96 41 56 62 59 56 58 Initial Warlord ECA Mod 19 | . . . . . . 11 11 19 18 17 17 . . . . . . . . . . . . Total Orders . | . . . . . . . . . . . . . . . . . . . . . . . . Ally Attacks 547 | . . . 2 11 1 . 35 3 . . 42 122 37 13 90 6 122 7 3 7 . 10 36 Total Damage 14965 | . . . 21 216 18 . 415 48 . . 1445 2632 688 397 2953 145 3991 236 136 270 . 305 1049 Kills 83 | . . . . 1 . . 5 . . . 8 17 4 3 19 2 17 2 . 2 . . 3 Allies Corrupted 1 | . . . . . . . . . . . . . . . . . 1 . . . . . . Allies Melted . | . . . . . . . . . . . . . . . . . . . . . . . . Intel | -11 -10 -10 -9 -8 -8 -8 -8 -8 -7 -6 -6 -6 -6 -6 -6 -5 -5 -5 -4 -4 -4 -4 -3 ------- Run | Yrd Mat Min Mat Mat Gar Mat Gar Mat Fac Fac Gar Ext Cet Arc Hub Fac Gar Fac Fac Gar Fac Gar Res Active Infowar (turns) 739 | . . . 303 436 . . . . . . . . . . . . . . . . . . . Seismic 739 | . . . 303 436 . . . . . . . . . . . . . . . . . . . Robot Analysis Total 4 | . . . 2 . . . . 2 . . . . . . . . . . . . . . . Derelict Logs Recovered 1 | . . 1 . . . . . . . . . . . . . . . . . . . . . Drone Launches . | . . . . . . . . . . . . . . . . . . . . . . . . Drone Recoveries . | . . . . . . . . . . . . . . . . . . . . . . . . Exploration | -11 -10 -10 -9 -8 -8 -8 -8 -8 -7 -6 -6 -6 -6 -6 -6 -5 -5 -5 -4 -4 -4 -4 -3 ------------- Run | Yrd Mat Min Mat Mat Gar Mat Gar Mat Fac Fac Gar Ext Cet Arc Hub Fac Gar Fac Fac Gar Fac Gar Res Turns Passed 22217 | 93 1063 607 304 830 1665 438 1752 401 1566 381 1963 1400 410 232 406 230 2249 1048 90 1596 63 1320 2110 Spaces Moved 10070 | 44 410 346 198 428 803 200 770 224 826 196 869 598 117 125 166 98 979 509 40 568 34 445 1077 Core 19 | 15 . . . . . . . . . . . . . . . . . . . . . . 4 Treads 1552 | 29 121 . . . . . . 1 . . . . . . . . . . . 276 34 304 787 Legs . | . . . . . . . . . . . . . . . . . . . . . . . . Wheels 8499 | . 289 346 198 428 803 200 770 223 826 196 869 598 117 125 166 98 979 509 40 292 . 141 286 Hover . | . . . . . . . . . . . . . . . . . . . . . . . . Flight . | . . . . . . . . . . . . . . . . . . . . . . . . Fastest Speed 50 | 50 130 130 140 140 145 145 125 125 145 165 150 150 160 160 160 160 175 175 136 136 160 140 50 Average Speed 156 | 122 148 136 140 144 145 145 161 135 148 165 158 165 161 160 160 173 179 182 136 161 160 185 137 Slowest Speed 320 | 160 320 140 140 155 145 145 220 317 225 165 210 240 165 160 160 175 190 310 136 285 160 265 160 Overloaded Moves . | . . . . . . . . . . . . . . . . . . . . . . . . Propulsion Burnouts . | . . . . . . . . . . . . . . . . . . . . . . . . Robots Hopped . | . . . . . . . . . . . . . . . . . . . . . . . . Potential Cave-ins . | . . . . . . . . . . . . . . . . . . . . . . . . Cave-ins Triggered . | . . . . . . . . . . . . . . . . . . . . . . . . Exploration Rate (%) 44 | 4 75 76 22 43 87 22 92 23 22 8 92 76 57 85 18 4 87 17 2 56 1 54 35 Regions Visited 23 Branch Regions 5 Pre-discovered Areas . | . . . . . . . . . . . . . . . . . . . . . . . . Known Exits Taken 6 | . . . . 1 . 1 . . . 1 . . . . . 1 . . 1 . 1 . . Unknown Exits Taken 11 | 1 1 1 1 . . . . 1 1 . . 1 1 1 1 . . 1 . . . . . Scrap Searched 1 | . . 1 . . . . . . . . . . . . . . . . . . . . . Spaces Dug 17 | . . . . . . . . . 2 2 . 2 . . . . 2 3 . 1 1 . 4 Terrain Destroyed 782 | . 23 . . 40 247 . 36 . 5 2 81 14 . 1 4 4 202 31 5 21 1 14 51 Melee 5 | . . . . . . . . . 2 1 . 2 . . . . . . . . . . . Projectile 180 | . . . . 1 . . 4 . 3 1 3 12 . 1 4 4 61 17 5 20 1 14 29 AOE 592 | . 23 . . 39 247 . 32 . . . 78 . . . . . 141 14 . . . . 18 Terrain Rammed . | . . . . . . . . . . . . . . . . . . . . . . . . Walls Destroyed . | . . . . . . . . . . . . . . . . . . . . . . . . Machines Disabled . | . . . . . . . . . . . . . . . . . . . . . . . . Actions | -11 -10 -10 -9 -8 -8 -8 -8 -8 -7 -6 -6 -6 -6 -6 -6 -5 -5 -5 -4 -4 -4 -4 -3 --------- Run | Yrd Mat Min Mat Mat Gar Mat Gar Mat Fac Fac Gar Ext Cet Arc Hub Fac Gar Fac Fac Gar Fac Gar Res Total 14416 | 70 685 451 219 580 1094 310 1096 277 1031 250 1274 861 330 154 279 136 1275 587 61 1045 39 789 1523 Wait 1999 | 2 116 82 . 77 37 48 116 10 83 34 129 98 195 24 78 17 66 35 10 311 . 172 259 Move 10047 | 43 409 345 197 428 800 200 769 223 825 196 867 597 116 124 165 98 977 508 40 566 34 443 1077 Hop . | . . . . . . . . . . . . . . . . . . . . . . . . Pick Up 277 | 8 29 1 8 16 13 6 19 4 17 7 32 17 3 2 8 2 15 3 . 22 . 19 26 Fast Attach 63 | 1 . . . 3 1 4 . 5 2 1 5 3 1 . 1 2 4 6 . 1 1 9 13 Attach 166 | 5 5 1 4 6 6 . 13 1 10 2 27 14 2 . 3 1 7 . 2 23 . 17 17 Detach 10 | . . . . . . . . . . . . . . . . . . . . 7 . 3 . Swap 177 | . 19 2 . 3 11 22 24 4 17 3 14 9 3 . 2 3 14 6 . 3 . 7 11 Drop 175 | . 4 2 5 13 9 10 7 8 14 4 16 6 5 2 7 2 17 10 . 5 1 13 15 Fire 1058 | 11 102 16 4 33 168 20 106 22 54 2 90 79 5 2 9 3 74 19 9 86 3 43 98 Melee 136 | . . . . . . . . . 3 1 23 2 . . 6 8 16 . . 13 . 63 1 Ram 9 | . 1 2 1 1 . . . . 2 . . 2 . . . . . . . . . . . Kick . | . . . . . . . . . . . . . . . . . . . . . . . . Crush 6 | . . . . . . . . . . . . . . . . . . . . . . . 6 Escape Stasis 136 | . . . . . 40 . . . . . 64 . . . . . 32 . . . . . . Rewire 157 | . . . . . 9 . 42 . 4 . 7 34 . . . . 53 . . 8 . . . Trap . | . . . . . . . . . . . . . . . . . . . . . . . . Miscellaneous . | . . . . . . . . . . . . . . . . . . . . . . . . Route ------- -11/Scrapyard -10/Materials (discovered 3 exits: *Mat / [*Min x2]) -10/Mines -9/Materials -8/Materials -8/Garrison (discovered 3 exits: *Mat x3) -8/Materials (discovered 2 exits: *Fac / Gar) -8/Garrison (discovered 3 exits: *Mat x3) -8/Materials -7/Factory (discovered 2 exits: *Fac / Sto) -6/Factory -6/Garrison (discovered 3 exits: *Ext x3) -6/Extension (discovered 2 exits: *Fac / *Cet) -6/Cetus -6/Archives (discovered 2 exits: *Hub x2) -6/Hub_04(d) -5/Factory -5/Garrison (discovered 4 exits: [*Fac x4]) -5/Factory -4/Factory -4/Garrison (discovered 2 exits: *Fac x2) -4/Factory -4/Garrison -3/Research History --------- Turn | Location | Event 5 | -11/Scrapyard | Discovered new exit (range 14) 94 | -11/Scrapyard | Entered Materials 94 | -10/Materials | Discovered new exit (range 9) 310 | -10/Materials | Build established: Mutant 457 | -10/Materials | Discovered new exit (range 13) 867 | -10/Materials | Discovered new exit (range 16) 951 | -10/Materials | Core integrity fell below 50% 1157 | -10/Materials | Entered Mines 1189 | -10/Mines | Met a Derelict bent on vengeance 1214 | -10/Mines | Assembled infested the area 1738 | -10/Mines | Discovered new exit (range 13) 1764 | -10/Mines | Entered Materials 1764 | -9/Materials | Accompanied by 2 allies 1764 | -9/Materials | Evolved 2 slots: Utility x1, Weapon x1 1769 | -9/Materials | Led the pair of lost Derelicts to an unsafe place 2046 | -9/Materials | Discovered new exit (range 7) 2060 | -9/Materials | Central database locked down 2068 | -9/Materials | Entered another Materials area 2068 | -8/Materials | Accompanied by 2 allies 2068 | -8/Materials | Evolved 2 slots: Utility x1, Weapon x1 2151 | -8/Materials | Build established: Tank 2898 | -8/Materials | Identified exit to Garrison 2898 | -8/Materials | Entered Garrison 2930 | -8/Garrison | Triggered checkpoint 2966 | -8/Garrison | Garrison Relay disabled 3037 | -8/Garrison | Triggered checkpoint 3062 | -8/Garrison | Triggered checkpoint 3162 | -8/Garrison | Triggered checkpoint 3220 | -8/Garrison | Discovered new exit (range 10) 3274 | -8/Garrison | Garrison Relay disabled 3315 | -8/Garrison | Triggered checkpoint 3340 | -8/Garrison | Triggered checkpoint 3428 | -8/Garrison | Triggered checkpoint 3516 | -8/Garrison | Garrison Relay disabled 3557 | -8/Garrison | Discovered new exit (range 12) 3622 | -8/Garrison | Phase Generator disabled 4213 | -8/Garrison | Garrison Relay disabled 4222 | -8/Garrison | Triggered checkpoint 4353 | -8/Garrison | Discovered new exit (range 3) 4418 | -8/Garrison | Attempted to access garrison exit controls, blocked by remote lockdown 4563 | -8/Garrison | Entered Materials 4849 | -8/Materials | Garrison activated, responded to threat 4940 | -8/Materials | Discovered new exit (range 16) 5001 | -8/Materials | Identified exit to Garrison 5001 | -8/Materials | Entered Garrison 5123 | -8/Garrison | Core integrity fell below 50% 5157 | -8/Garrison | Triggered checkpoint 5158 | -8/Garrison | Lost 3 parts (1p1u1w) 5194 | -8/Garrison | Garrison Relay disabled 5229 | -8/Garrison | Triggered checkpoint 5477 | -8/Garrison | Triggered checkpoint 5576 | -8/Garrison | Lost 4 parts (1n3u) 5708 | -8/Garrison | Discovered new exit (range 8) 5743 | -8/Garrison | Garrison Relay disabled 5967 | -8/Garrison | Triggered checkpoint 6095 | -8/Garrison | Triggered checkpoint 6121 | -8/Garrison | Discovered new exit (range 5) 6330 | -8/Garrison | Garrison Relay disabled 6359 | -8/Garrison | Triggered checkpoint 6561 | -8/Garrison | Lost 3 parts (1p1n1u) 6569 | -8/Garrison | Triggered checkpoint 6582 | -8/Garrison | Garrison Relay disabled 6652 | -8/Garrison | Discovered new exit (range 12) 6753 | -8/Garrison | Entered Materials 6753 | -8/Materials | Accompanied by 1 ally 6835 | -8/Materials | Build established: Scavenger-Tank 7120 | -8/Materials | Discovered new exit (range 9) 7153 | -8/Materials | First assault squad dispatched 7154 | -8/Materials | Entered Factory 7154 | -7/Factory | Evolved 2 slots: Utility x1, Weapon x1 7155 | -7/Factory | Identified exit to Storage 8215 | -7/Factory | Discovered new exit (range 6) 8468 | -7/Factory | Lost 7 parts (1n3u3w) 8720 | -7/Factory | Entered another Factory area 8720 | -6/Factory | Evolved 2 slots: Utility x2 9101 | -6/Factory | Identified exit to Garrison 9101 | -6/Factory | Entered Garrison 9152 | -6/Garrison | Triggered checkpoint 9243 | -6/Garrison | Garrison Relay disabled 9450 | -6/Garrison | Phase Generator disabled 9562 | -6/Garrison | Installed Relay Interface Framework 9626 | -6/Garrison | Triggered checkpoint 9657 | -6/Garrison | Spotted B-75 Beast 9673 | -6/Garrison | Destroyed B-75 Beast 9673 | -6/Garrison | Triggered checkpoint 9676 | -6/Garrison | Triggered checkpoint 9730 | -6/Garrison | Core integrity fell below 50% 9741 | -6/Garrison | Lost 12 parts (1p2n4u5w) 9756 | -6/Garrison | Destroyed 12 combat bots 9894 | -6/Garrison | Discovered new exit (range 10) 9971 | -6/Garrison | Garrison Relay disabled 10541 | -6/Garrison | Triggered checkpoint 10541 | -6/Garrison | Garrison Relay disabled 10634 | -6/Garrison | Discovered new exit (range 11) 10767 | -6/Garrison | Discovered new exit (range 7) 10789 | -6/Garrison | Triggered checkpoint 10835 | -6/Garrison | Lost 3 allies 10938 | -6/Garrison | Garrison Relay disabled 11064 | -6/Garrison | Entered Extension 11125 | -6/Extension | Rescued a captive Derelict 11376 | -6/Extension | Lost 3 allies 11508 | -6/Extension | Lost 3 allies 11649 | -6/Extension | Spotted B-75 Beast 11670 | -6/Extension | Hijacked Beast 5a control node with streamctrl_high 11672 | -6/Extension | Spotted B-75 Beast 11696 | -6/Extension | Core integrity fell below 20% 11698 | -6/Extension | Destroyed B-75 Beast 11723 | -6/Extension | Lost 3 allies 11739 | -6/Extension | Disrupted transfer network 11740 | -6/Extension | Lost 3 parts (1u2w) 11942 | -6/Extension | Lost 4 parts (1p2u1w) 12010 | -6/Extension | Rescued a captive Derelict 12010 | -6/Extension | Rescued a captive Derelict 12045 | -6/Extension | Rescued A7 12114 | -6/Extension | First assault squad dispatched 12250 | -6/Extension | Lost 5 allies 12430 | -6/Extension | Discovered new exit (range 10) 12431 | -6/Extension | Discovered new exit (range 6) 12464 | -6/Extension | Entered Cetus 12464 | -6/Cetus | Accompanied by 9 allies (A7) 12469 | -6/Cetus | Acquired a Cetus Manufacturing Module code from A7 12478 | -6/Cetus | Spotted Cetus Guard 12480 | -6/Cetus | Spotted Cetus Guard 12481 | -6/Cetus | Spotted Cetus Guard 12481 | -6/Cetus | Spotted Cetus Guard 12485 | -6/Cetus | Allies destroyed Cetus Guard 12491 | -6/Cetus | Allies destroyed Cetus Guard 12496 | -6/Cetus | Allies destroyed Cetus Guard 12497 | -6/Cetus | Allies destroyed Cetus Guard 12611 | -6/Cetus | Started Cetus Manufacturing Module 12636 | -6/Cetus | Manufactured an Enhanced Grunt 12661 | -6/Cetus | Manufactured an Enhanced Grunt 12686 | -6/Cetus | Manufactured an Enhanced Grunt 12711 | -6/Cetus | Manufactured an Enhanced Grunt 12736 | -6/Cetus | Manufactured an Enhanced Grunt 12827 | -6/Cetus | Discovered new exit (range 16) 12874 | -6/Cetus | Entered Archives 12874 | -6/Archives | Accompanied by 13 allies (A7) 12930 | -6/Archives | Unable to access archive contents 12936 | -6/Archives | Discovered new exit (range 16) 12946 | -6/Archives | Unable to access archive contents 12952 | -6/Archives | Discovered new exit (range 16) 12962 | -6/Archives | Unable to access archive contents 13106 | -6/Archives | Entered Hub_04(d) 13106 | -6/Hub_04(d) | Accompanied by 11 allies 13106 | -6/Hub_04(d) | Spotted B-75 Beast 13115 | -6/Hub_04(d) | Allies destroyed B-75 Beast 13249 | -6/Hub_04(d) | Discovered new exit (range 13) 13512 | -6/Hub_04(d) | Entered Factory 13512 | -5/Factory | Accompanied by 5 allies 13512 | -5/Factory | Evolved 2 slots: Utility x2 13742 | -5/Factory | Identified exit to Garrison 13742 | -5/Factory | Entered Garrison 13742 | -5/Garrison | Accompanied by 4 allies 13784 | -5/Garrison | Triggered checkpoint 13807 | -5/Garrison | System corruption reached 10% 13886 | -5/Garrison | Triggered checkpoint 13939 | -5/Garrison | Garrison Relay disabled 14024 | -5/Garrison | Triggered checkpoint 14055 | -5/Garrison | Garrison Relay disabled 14161 | -5/Garrison | Triggered checkpoint 14168 | -5/Garrison | Triggered checkpoint 14171 | -5/Garrison | Spotted B-75 Beast 14189 | -5/Garrison | Allies destroyed B-75 Beast 14214 | -5/Garrison | Triggered checkpoint 14261 | -5/Garrison | Triggered checkpoint 14286 | -5/Garrison | Lost 4 allies 14453 | -5/Garrison | Phase Generator disabled 14487 | -5/Garrison | Discovered new exit (range 9) 14588 | -5/Garrison | Triggered checkpoint 14603 | -5/Garrison | Garrison Relay disabled 14758 | -5/Garrison | Triggered checkpoint 14775 | -5/Garrison | Garrison Relay disabled 14894 | -5/Garrison | Discovered new exit (range 13) 14940 | -5/Garrison | Triggered checkpoint 14966 | -5/Garrison | Discovered new exit (range 3) 15300 | -5/Garrison | Spotted Striker 15300 | -5/Garrison | Spotted Striker 15326 | -5/Garrison | Destroyed Striker 15364 | -5/Garrison | Destroyed Striker 15382 | -5/Garrison | Lost 4 parts (1p2u1w) 15941 | -5/Garrison | Discovered new exit (range 9) 15960 | -5/Garrison | Expanded RIF knowledge: Structural Interface 15991 | -5/Garrison | Entered Factory 15991 | -5/Factory | Accompanied by 1 ally 17000 | -5/Factory | Discovered new exit (range 16) 17039 | -5/Factory | Entered another Factory area 17039 | -4/Factory | Evolved 2 slots: Propulsion x2 17129 | -4/Factory | Identified exit to Garrison 17129 | -4/Factory | Entered Garrison 17207 | -4/Garrison | Triggered checkpoint 17537 | -4/Garrison | Spotted B-86 Titan 17547 | -4/Garrison | Lost 3 parts (1u2w) 17572 | -4/Garrison | Garrison Relay disabled 17639 | -4/Garrison | Triggered checkpoint 17650 | -4/Garrison | Lost 3 parts (1u2w) 17709 | -4/Garrison | Discovered new exit (range 10) 17727 | -4/Garrison | Expanded RIF knowledge: Alert ID Control 17971 | -4/Garrison | Lost 3 parts (1p1n1w) 17979 | -4/Garrison | System corruption reached 10% 18230 | -4/Garrison | Destroyed B-86 Titan 18385 | -4/Garrison | Build established: Bothacker-Tank 18389 | -4/Garrison | Triggered checkpoint 18390 | -4/Garrison | Triggered checkpoint 18393 | -4/Garrison | Triggered checkpoint 18438 | -4/Garrison | Discovered new exit (range 12) 18464 | -4/Garrison | Triggered checkpoint 18650 | -4/Garrison | Found embedded Infiltrators 18657 | -4/Garrison | Garrison Relay disabled 18725 | -4/Garrison | Entered Factory 18725 | -4/Factory | Accompanied by 1 ally 18788 | -4/Factory | Identified exit to Garrison 18788 | -4/Factory | Entered Garrison 18805 | -4/Garrison | Expanded RIF knowledge: Autoassimilate 18999 | -4/Garrison | Lost 5 parts (3u2w) 19014 | -4/Garrison | Triggered checkpoint 19131 | -4/Garrison | Garrison Relay disabled 19227 | -4/Garrison | Lost 5 parts (2n1u2w) 19273 | -4/Garrison | Spotted B-86 Titan 19338 | -4/Garrison | Triggered checkpoint 19406 | -4/Garrison | Discovered new exit (range 13) 19460 | -4/Garrison | Build established: Botlord-Gunner 19680 | -4/Garrison | Garrison Relay disabled 19688 | -4/Garrison | Triggered checkpoint 19817 | -4/Garrison | Build established: Botlord-Tank 20108 | -4/Garrison | Entered Research 20108 | -3/Research | Evolved 2 slots: Propulsion x2 20572 | -3/Research | Found Prototype Launcher 20572 | -3/Research | Identified Hellfire Missile Launcher 21627 | -3/Research | Lost 3 parts (1p1n1w) 21950 | -3/Research | Lost 12 parts (1p3n2u6w) 22202 | -3/Research | Core integrity fell below 50% 22211 | -3/Research | System corruption reached 10% 22214 | -3/Research | Core integrity fell below 20% 22218 | -3/Research | Destroyed by X-77 Beamer with Gatling Laser Last Messages --------------- 22204_ Penetrated by Slug. 22204_ Slug penetrates Wall. 22205_ Imp. Light Armor Plating destroyed. 22206_ Slug penetrates Wall. 22208_ Railgun destroyed. 22209_ Penetrated by Slug. 22209_ Critical hit (Destroy). 22209_ Hvy. Treads destroyed. 22209_ K-01 Serf collects debris. 22209_ K-01 Serf destroyed. 22210_ Slug penetrates Wall. 22213_ Com. Mass Driver destroyed. 22213_ Penetrated by Slug. 22215_ Identified Carbide Saw. 22216_ Slug penetrates Wall. 22216_ Penetrated by Slug. 22216_ Slug penetrates Wall. 22216_ Penetrated by Slug. 22216_ Exp. Coolant Injector destroyed. 22218_ Carbide Saw destroyed. Map ----- +----------------------------------------------------+ | ???????????????????????????????# """" +?? | | ???????????????????????????????# """"" #?? | | ???????????????????????????????# """" #?? | | ???????????????????????????????# """" #??# | | ???????????????????????????????# = #??# | | ???????????????????????????????# #??# | | ???????????????????????????????# #### | | ???????????????????????????????# " | | ???????????????????????????????# #### | | ???????????????????????????????##+###########??# | | ????????????????????????????????# #????????????# | | ????????????????????????????????# #????????????# | | ??????????????????????????????### ############## | | ########################## % | | !! + !! % | | !! # = == | | ?????# != ############### | | ?????# #????# ! [ # ######## | | ?????# #????# [ # #??????? | | ?????#### #???## s [ # """ #??????? | | ????????# !#####;= %x # """ #??????? | | ????????+ +%s[ x # """ #??????? | | ????????# ###+######h %p#u #??????? | | ??=?????# ? ???# = p +??????? | | ????????+ + #?# ;H #??????? | | ????????##### ! #?# @ # """ ?????????? | | ????????????# #?#########k ""????????????? | | ????????????# #??????????? ""????????????? | | ????????????# #??????????? ????????????? | | ????????????########?????????????? ????????????? | | ?????????????????????????????????????????????????? | | ?????????????????????????????????????????????????? | | ?????????????????????????????????????????????????? | | ?????????????????????????????????????????????????? | | ?????????????????????????????????????????????????? | | ?????????????????????????????????????????????????? | | ?????????????????????????????????????????????????? | | ?????????????????????????????????????????????????? | | ?????????????????????????????????????????????????? | | ?????????????????????????????????????????????????? | | ?????????????????????????????????????????????????? | | ?????????????????????????????????????????????????? | | ?????????????????????????????????????????????????? | | ?????????????????????????????????????????????????? | | ?????????????????????????????????????????????????? | | ?????????????????????????????????????????????????? | | ?????????????????????????????????????????????????? | | | | | | | +----------------------------------------------------+ Best States ------------- Heat Dissipation 121 Coolant Potential 250 Energy Generation 29 Energy Capacity 350 Matter Stores 300 Matter Capacity 300 Sight Range 16 Terrain Scan Density 10 Power Amplification 20 Base Temperature (-) 150 Armor Coverage 1650 Resistance: TH 20 Resistance: EM 15 Weapon Shielding 33 Weapon Cycling 20 Phase Shifting 10 Evasion (%) 50 Target Analysis 12 Recoil Reduction 6 Particle Charging 25 Relay Coupler Types 3 Relay Coupler Value 73 Authchip Count 2 Item Schematics ----------------- None Robot Schematics ------------------ None Fabricated ------------ Nothing Repaired ---------- Nothing Studied --------- EM Pulse Gun | -8/Materials | Hacked Com. Wheel | -8/Materials | Hacked Wheel | -8/Materials | Hacked Alien Tech Used ----------------- None Achievements -------------- Hack The Planet Satisfying Versatile Challenges ------------ None Game ------ Seed DiametricMetaDatajack Manual? 0 Play Time 02:54:40 Cumulative 136.6 hours Start 2025.12.11 @ 14:12:53 End 2025.12.13 @ 13:48:24 Sessions 7 Manual Loads 0 Difficulty Rogue Special Mode None Game No. 153 Rogue 153 Adventurer 0 Explorer 0 Win Type - Total 2 Types 2/0/0/0/0/0/0/0/0/0 Lore% 74 Gallery% 63 Achievement% 45 Wizard Run 0 Options --------- Layout 1 ASCII 0 Keyboard 0 Movement Mouse Keybinds 0 Fullscreen 1 Font 32/SmallcapsGlow Map View 50x35 Zoom Use 0% Tactical HUD 1 Map Filters NONE Filters NONE Steam 1 RUN: cdf6790e-ef37-4b29-9d25-11815648bfd4